bitfinex/quotes_BTCUSD_20240828
["timestamp","ask_amount","ask_price","bid_price","bid_amount"]
[1724847145789,0.20804831,60155.0,60154.0,0.96324354]
[1724847146023,0.23410972,60155.0,60154.0,0.94924354]
[1724847146202,0.23410972,60155.0,60154.0,0.96324354]
[1724847146418,0.23410972,60155.0,60154.0,0.97724354]
[1724847146668,0.23381441,60155.0,60154.0,1.30972254]
[1724847147119,0.23381441,60155.0,60154.0,0.97724354]
[1724847147586,0.23381441,60155.0,60154.0,1.30972254]
[1724847147836,0.23381441,60155.0,60154.0,0.97724354]
[1724847148296,0.23410972,60155.0,60154.0,0.64476454]
[1724847149335,0.23492872,60155.0,60154.0,0.64476454]
[1724847149963,0.20886731,60155.0,60154.0,0.97724354]
[1724847150729,0.20886731,60155.0,60154.0,0.64476454]
[1724847151289,0.20886731,60155.0,60154.0,0.97724354]
[1724847153202,0.23492853,60155.0,60154.0,0.97724354]
[1724847154113,0.23492853,60155.0,60154.0,0.64476454]
[1724847154539,0.23492853,60155.0,60154.0,0.97724354]
[1724847158373,0.23463322,60155.0,60154.0,0.97724354]
[1724847158853,0.15493322,60155.0,60154.0,1.30972254]
[1724847159079,0.128872,60155.0,60154.0,1.30972254]
[1724847159360,0.067572,60155.0,60154.0,1.51084628]
[1724847159590,0.057572,60155.0,60154.0,1.53384628]
[1724847159799,0.057572,60155.0,60154.0,1.86632528]
[1724847160769,0.057572,60155.0,60154.0,1.86652528]
[1724847161496,0.057572,60155.0,60154.0,3.13842618]
[1724847162191,0.057572,60155.0,60154.0,3.18804781]
[1724847162422,0.133672,60155.0,60154.0,2.58182344]
[1724847162854,0.133672,60155.0,60154.0,2.58182343]
[1724847163321,0.198072,60155.0,60154.0,2.58182343]
[1724847165962,0.22413192,60155.0,60154.0,2.58182343]
[1724847167031,0.08363192,60155.0,60154.0,2.58182343]
[1724847167249,0.08363192,60155.0,60154.0,1.31082343]
[1724847167465,0.08363192,60155.0,60154.0,1.53494717]
[1724847167679,0.08363192,60155.0,60154.0,1.33382343]
[1724847167899,0.15973192,60155.0,60154.0,1.31082343]
[1724847168126,0.22413192,60155.0,60154.0,1.31082343]
[1724847170021,0.198072,60155.0,60154.0,1.31082343]
[1724847170418,0.198072,60155.0,60154.0,1.36048671]
[1724847170680,0.198072,60155.0,60154.0,1.31082343]
[1724847170892,0.198072,60155.0,60154.0,1.36051546]
[1724847171540,0.198072,60155.0,60154.0,1.36052582]
[1724847171755,0.198072,60155.0,60154.0,1.31082343]
[1724847172415,0.198072,60155.0,60154.0,1.77908954]
[1724847172416,0.121972,60155.0,60154.0,1.77908954]
[1724847172593,0.121972,60155.0,60154.0,1.67970547]
[1724847172824,0.057572,60155.0,60154.0,1.67970547]
[1724847173492,0.057572,60155.0,60154.0,1.80393556]
[1724847173702,0.057572,60155.0,60154.0,1.80401931]
[1724847174116,0.057572,60155.0,60154.0,1.67970547]
[1724847174341,0.057572,60155.0,60154.0,1.80401931]
[1724847175398,0.057572,60155.0,60154.0,2.13649831]
[1724847175617,0.057572,60155.0,60154.0,2.24114028]
[1724847175827,0.057572,60155.0,60154.0,2.24114027]
[1724847182314,0.057572,60155.0,60154.0,2.24584496]
[1724847182759,0.057572,60155.0,60154.0,2.12148597]
[1724847182966,0.057572,60155.0,60154.0,2.2458369]
[1724847183434,0.057572,60155.0,60154.0,2.62242574]
[1724847183636,1e-08,60155.0,60154.0,2.78165653]
[1724847183858,1e-08,60155.0,60154.0,2.63242574]
[1724847184070,1e-08,60155.0,60154.0,2.64488216]
[1724847184278,1e-08,60155.0,60154.0,2.64688216]
[1724847184512,1e-08,60155.0,60154.0,2.63088216]
[1724847184793,1e-08,60155.0,60154.0,2.61688216]
[1724847184994,1e-08,60155.0,60154.0,2.64488216]
[1724847185618,1e-08,60155.0,60154.0,2.64688216]
[1724847185825,1e-08,60155.0,60154.0,2.70788216]
[1724847186042,1e-08,60155.0,60154.0,2.70787928]
[1724847186472,1e-08,60155.0,60154.0,2.69542574]
[1724847186673,1e-08,60155.0,60154.0,2.70787927]
[1724847187310,1e-08,60155.0,60154.0,2.70587927]
[1724847187518,1e-08,60155.0,60154.0,2.64487927]
[1724847187949,1e-08,60155.0,60154.0,2.31240027]
[1724847188170,1e-08,60155.0,60154.0,3.58340027]
[1724847188619,1e-08,60155.0,60154.0,3.91587927]
[1724847188833,1e-08,60155.0,60154.0,3.91584668]
[1724847189465,1e-08,60155.0,60154.0,3.93145922]
[1724847189674,1e-08,60155.0,60154.0,3.59898022]
[1724847190303,1e-08,60155.0,60154.0,3.33921476]
[1724847190515,0.14610001,60155.0,60154.0,3.32360222]
[1724847190732,0.14610001,60155.0,60154.0,3.42302812]
[1724847190947,0.14610001,60155.0,60154.0,3.41057459]
[1724847191504,0.14610001,60155.0,60154.0,3.31114868]
[1724847192980,0.14610001,60155.0,60154.0,2.97866968]
[1724847193192,0.14610001,60155.0,60154.0,2.65642366]
[1724847193399,0.14610001,60155.0,60154.0,2.58182341]
[1724847193611,0.14610001,60155.0,60154.0,3.02533161]
[1724847193821,0.14610001,60155.0,60154.0,2.65643559]
[1724847194015,0.14610001,60155.0,60154.0,1.38543559]
[1724847194469,0.14610001,60155.0,60154.0,1.75433352]
[1724847196813,0.17215864,60155.0,60154.0,1.75433352]
[1724847197698,0.17215864,60155.0,60154.0,0.75689652]
[1724847197902,0.17215864,60155.0,60154.0,0.31338641]
[1724847198104,0.17215864,60155.0,60154.0,0.64586541]
[1724847198317,0.17245395,60155.0,60154.0,0.14714741]
[1724847198550,0.17245395,60155.0,60154.0,0.03314741]
[1724847198695,0.17245395,60155.0,60154.0,0.18538641]
[1724847198895,0.17245395,60155.0,60154.0,0.28538641]
[1724847199105,0.17245395,60155.0,60154.0,0.29938641]
[1724847199316,0.67116495,60155.0,60154.0,0.13314741]
[1724847199539,1.20476269,60155.0,60154.0,0.13314741]
[1724847199746,1.20476269,60155.0,60154.0,0.04714741]
[1724847200024,0.84623006,60155.0,60154.0,0.02930073]
[1724847200354,1.17870406,60155.0,60154.0,0.02930073]
[1724847200555,1.17870406,60155.0,60154.0,0.01530073]
[1724847200963,1.17870406,60155.0,60154.0,0.02930073]
[1724847201375,1.17870406,60155.0,60154.0,0.01530073]
[1724847201622,1.67870406,60155.0,60154.0,0.01530073]
[1724847201819,1.67870406,60155.0,60154.0,0.02930073]
[1724847202144,1.67870406,60155.0,60154.0,0.01530073]
[1724847202536,1.67870406,60155.0,60154.0,0.00130073]
[1724847202981,0.00029531,60137.0,60135.0,0.3334849]
[1724847203108,0.53364774,60146.0,60135.0,0.4997769]
[1724847203109,0.14639531,60136.0,60135.0,0.4997769]
[1724847204058,0.12639531,60136.0,60135.0,0.4997769]
[1724847204302,0.12639531,60136.0,60135.0,0.1671929]
[1724847204585,0.12639531,60136.0,60135.0,0.4997779]
[1724847204989,0.1524649,60136.0,60135.0,0.4997779]
[1724847205193,0.1524649,60136.0,60135.0,0.1671929]
[1724847205424,0.1524649,60136.0,60135.0,0.0009009]
[1724847205840,0.1524649,60136.0,60135.0,0.0099009]
[1724847206030,0.1524649,60136.0,60135.0,0.1861929]
[1724847206244,0.1524649,60136.0,60135.0,0.0199009]
[1724847207247,0.15662259,60136.0,60135.0,0.0199009]
[1724847207681,0.32291159,60136.0,60135.0,0.0199009]
[1724847208121,0.15662259,60136.0,60135.0,0.0199009]
[1724847209650,0.15662259,60136.0,60135.0,0.1861929]
[1724847209877,0.1524649,60136.0,60135.0,1.1839479]
[1724847211351,0.1524649,60136.0,60135.0,1.19679622]
[1724847223564,0.1524649,60136.0,60135.0,0.86421122]
[1724847228832,0.3187539,60136.0,60135.0,0.03274922]
[1724847229049,0.65549078,60136.0,60135.0,0.03274922]
[1724847229278,0.32291178,60136.0,60135.0,0.03274922]
[1724847230887,0.32373078,60136.0,60135.0,0.03274922]
[1724847233187,0.32373078,60136.0,60135.0,0.0199009]
[1724847234565,0.65630978,60136.0,60135.0,0.0199009]
[1724847236827,0.98888878,60136.0,60135.0,0.0199009]
[1724847237048,0.96281919,60136.0,60135.0,0.0199009]
[1724847240328,0.65631276,60136.0,60135.0,0.0199009]
[1724847240545,0.32373376,60136.0,60135.0,0.0199009]
[1724847240771,0.65631276,60136.0,60135.0,0.0199009]
[1724847240964,0.65631276,60136.0,60135.0,0.03291331]
[1724847243226,0.63024019,60136.0,60135.0,0.03291331]
[1724847243455,0.13137219,60136.0,60135.0,0.03291331]
[1724847243666,0.29350331,60136.0,60135.0,0.03291331]
[1724847243890,0.297661,60136.0,60135.0,0.03291331]
[1724847244101,0.131372,60136.0,60135.0,0.03291331]
[1724847246404,0.15744378,60136.0,60135.0,0.03291331]
[1724847247601,0.15744378,60136.0,60135.0,0.03249888]
[1724847248898,0.32373278,60136.0,60135.0,0.03249888]
[1724847249119,0.15744378,60136.0,60135.0,0.03249888]
[1724847250034,0.131372,60136.0,60135.0,0.03249888]
[1724847251335,0.12721431,60136.0,60135.0,0.03249888]
[1724847251756,0.13137195,60136.0,60135.0,0.03249888]
[1724847252432,0.21183393,60136.0,60135.0,0.03249888]
[1724847253270,0.23790571,60136.0,60135.0,0.03249888]
[1724847254571,0.23790571,60136.0,60135.0,0.61183786]
[1724847254572,0.02689078,60136.0,60135.0,0.61183786]
[1724847254822,0.02689078,60136.0,60135.0,1.78954645]
[1724847255048,0.02689078,60136.0,60135.0,4.38281991]
[1724847255246,0.0082,60157.0,60154.0,0.91273912]
[1724847255668,0.0082,60157.0,60154.0,0.84376767]
[1724847256720,0.0082,60157.0,60154.0,1.17624667]
[1724847257995,0.0082,60157.0,60154.0,1.17924667]
[1724847258431,0.52606216,60155.0,60154.0,1.17924667]
[1724847258663,0.52606216,60155.0,60154.0,1.18024667]
[1724847259505,0.52606216,60155.0,60154.0,1.26224667]
[1724847259710,0.52606216,60155.0,60154.0,1.32374667]
[1724847259974,0.52606216,60155.0,60154.0,1.42374667]
[1724847260206,0.52606216,60155.0,60154.0,1.47349344]
[1724847260417,0.50000001,60155.0,60154.0,1.42374667]
[1724847260837,0.50000001,60155.0,60154.0,1.42274667]
[1724847261057,0.50000001,60155.0,60154.0,1.42326983]
[1724847261278,0.50000001,60155.0,60154.0,1.43726983]
[1724847261407,0.50000001,60155.0,60154.0,1.41926983]
[1724847261822,0.50000001,60155.0,60154.0,1.44726983]
[1724847262631,0.50000001,60155.0,60154.0,1.77974883]
[1724847262840,0.50000001,60155.0,60154.0,2.17160554]
[1724847263299,0.50000001,60155.0,60154.0,2.50908454]
[1724847263533,0.50000001,60155.0,60154.0,2.81161662]
[1724847263740,0.50000001,60155.0,60154.0,2.81361662]
[1724847264382,0.50000001,60155.0,60154.0,2.78873499]
[1724847265043,0.50000001,60155.0,60154.0,2.68951425]
[1724847265264,0.50000001,60155.0,60154.0,2.81340541]
[1724847266105,0.50000001,60155.0,60154.0,2.68951425]
[1724847266549,0.50000001,60155.0,60154.0,2.78856225]
[1724847267193,0.50000001,60155.0,60154.0,2.68951425]
[1724847267440,0.50000001,60155.0,60154.0,3.00799325]
[1724847267671,0.50000001,60155.0,60154.0,2.68598756]
[1724847267900,0.50000001,60155.0,60154.0,2.78650765]
[1724847268312,0.50000001,60155.0,60154.0,2.3186886]
[1724847268933,0.50000001,60155.0,60154.0,2.3206886]
[1724847269351,0.50000001,60155.0,60154.0,2.37015078]
[1724847269783,0.50000001,60155.0,60154.0,2.37014671]
[1724847270263,0.50000001,60155.0,60154.0,2.3206886]
[1724847270497,0.50000001,60155.0,60154.0,2.78832469]
[1724847271123,0.50000001,60155.0,60154.0,2.6894735]
[1724847271328,0.50000001,60155.0,60154.0,3.0219525]
[1724847271545,0.50000001,60155.0,60154.0,3.02153096]
[1724847271759,0.36701201,60155.0,60154.0,3.04672894]
[1724847271969,1e-08,60159.0,60158.0,1.656556]
[1724847272179,1e-08,60159.0,60158.0,2.14898523]
[1724847272412,1e-08,60159.0,60158.0,2.16108887]
[1724847272627,1e-08,60159.0,60158.0,2.49354587]
[1724847273050,0.00819,60163.0,60162.0,1.692407]
[1724847273254,0.00819,60163.0,60162.0,3.49591438]
[1724847273461,0.00819,60163.0,60162.0,4.16078438]
[1724847274101,0.00819,60163.0,60162.0,4.21015259]
[1724847275079,0.00819,60163.0,60162.0,4.22415259]
[1724847275288,0.00819,60163.0,60162.0,4.21015259]
[1724847275529,0.00819,60163.0,60162.0,4.22415259]
[1724847275736,0.00819,60163.0,60162.0,4.23815259]
[1724847275941,0.00819,60163.0,60162.0,4.22415259]
[1724847276142,0.00819,60163.0,60162.0,4.18878438]
[1724847276594,0.00819,60163.0,60162.0,4.23807245]
[1724847276804,0.00819,60163.0,60162.0,4.22407245]
[1724847277223,0.00819,60163.0,60162.0,4.23807245]
[1724847277640,0.00819,60163.0,60162.0,4.22407245]
[1724847278067,0.00819,60163.0,60162.0,4.23807245]
[1724847278276,0.00819,60163.0,60162.0,4.21007245]
[1724847278489,0.00819,60163.0,60162.0,4.54349282]
[1724847278701,0.00819,60163.0,60162.0,4.18878438]
[1724847279353,0.00819,60163.0,60162.0,4.17478438]
[1724847279785,0.00819,60163.0,60162.0,4.22403233]
[1724847279991,0.00819,60163.0,60162.0,4.21003233]
[1724847280203,0.00819,60163.0,60162.0,4.22403233]
[1724847280637,0.00859,60179.0,60178.0,1.495561]
[1724847280875,0.00859,60179.0,60178.0,1.595561]
[1724847281090,0.00859,60179.0,60178.0,1.60750793]
[1724847282364,0.00859,60179.0,60178.0,1.62150793]
[1724847283016,0.09059,60179.0,60178.0,1.63550793]
[1724847284318,0.15329,60179.0,60178.0,1.63550793]
[1724847284522,0.07129,60179.0,60178.0,1.63550793]
[1724847285628,0.07129,60179.0,60178.0,1.64979745]
[1724847286932,0.03020414,60187.0,60186.0,0.498454]
[1724847287124,0.02605007,60187.0,60186.0,1.16306]
[1724847287371,0.02605007,60187.0,60186.0,1.1747562]
[1724847288302,0.02605007,60187.0,60186.0,1.1887562]
[1724847288519,0.02605007,60187.0,60186.0,1.2027562]
[1724847290073,0.1447,60187.0,60186.0,1.2027562]
[1724847290543,0.1447,60187.0,60186.0,1.21682872]
[1724847291529,0.145519,60187.0,60186.0,1.2027562]
[1724847292646,0.14967289,60187.0,60186.0,1.2027562]
[1724847292882,0.145519,60187.0,60186.0,1.2027562]
[1724847294997,0.14967289,60187.0,60186.0,1.2027562]
[1724847296403,0.17572209,60187.0,60186.0,1.2027562]
[1724847298508,0.1715682,60187.0,60186.0,1.2027562]
[1724847298771,0.17572216,60187.0,60186.0,1.2027562]
[1724847299988,0.14967296,60187.0,60186.0,1.2027562]
[1724847300971,0.14967296,60187.0,60186.0,0.8704532]
[1724847303324,0.17572242,60187.0,60186.0,0.5381502]
[1724847304077,0.145519,60187.0,60186.0,0.8704532]
[1724847304287,0.145519,60187.0,60186.0,1.1887562]
[1724847304539,0.145519,60187.0,60186.0,1.1917562]
[1724847304780,0.145519,60187.0,60186.0,1.1777562]
[1724847304991,0.145519,60187.0,60186.0,1.1837562]
[1724847305429,0.14967304,60187.0,60186.0,0.8494532]
[1724847305653,0.14967304,60187.0,60186.0,0.8604532]
[1724847306578,0.14967304,60187.0,60186.0,0.8494532]
[1724847306786,0.14967304,60187.0,60186.0,0.1778472]
[1724847306997,0.14967304,60187.0,60186.0,0.1878472]
[1724847307208,0.17572294,60187.0,60186.0,0.1878472]
[1724847307623,0.17572294,60187.0,60186.0,0.1778472]
[1724847307831,0.17572294,60187.0,60186.0,0.1878472]
[1724847308040,0.17572294,60187.0,60186.0,0.1968472]
[1724847308249,0.17572294,60187.0,60186.0,0.1878472]
[1724847308682,0.17572294,60187.0,60186.0,0.1988472]
[1724847308898,0.17572294,60187.0,60186.0,0.8634532]
[1724847309114,0.17572294,60187.0,60186.0,0.5311502]
[1724847309321,0.17572294,60187.0,60186.0,0.8634532]
[1724847309546,0.17572294,60187.0,60186.0,0.5311502]
[1724847310202,0.14967304,60187.0,60186.0,0.5311502]
[1724847310882,0.14967304,60187.0,60186.0,0.8634532]
[1724847312210,0.14967304,60187.0,60186.0,1.1957562]
[1724847312211,0.14967316,60187.0,60186.0,1.1957562]
[1724847312471,0.063519,60187.0,60186.0,1.1957562]
[1724847313329,0.063519,60187.0,60186.0,1.24538154]
[1724847314230,0.063519,60187.0,60186.0,1.66369061]
[1724847314231,0.000819,60187.0,60186.0,1.66369061]
[1724847314455,0.000819,60187.0,60186.0,1.66443992]
[1724847314674,0.000819,60187.0,60186.0,1.99674292]
[1724847315313,0.000819,60187.0,60186.0,1.98574292]
[1724847315527,0.000819,60187.0,60186.0,2.1101081]
[1724847315952,0.000819,60187.0,60186.0,1.7678051]
[1724847316166,0.000819,60187.0,60186.0,1.65743992]
[1724847316354,0.000819,60187.0,60186.0,1.66643049]
[1724847316817,0.000819,60187.0,60186.0,1.98973349]
[1724847317246,0.000819,60187.0,60186.0,2.00373349]
[1724847317468,0.000819,60187.0,60186.0,1.98973349]
[1724847317688,0.000819,60187.0,60186.0,1.97502535]
[1724847317902,0.000819,60187.0,60186.0,2.14171216]
[1724847319110,0.000819,60187.0,60186.0,2.01730714]
[1724847319317,0.000819,60187.0,60186.0,2.09950714]
[1724847320362,0.000819,60187.0,60186.0,2.20993514]
[1724847320567,0.000819,60187.0,60186.0,2.07150714]
[1724847320998,0.000819,60187.0,60186.0,2.08550714]
[1724847321212,0.000819,60187.0,60186.0,2.08550357]
[1724847321457,0.000819,60187.0,60186.0,2.09950357]
[1724847322293,0.000819,60187.0,60186.0,2.22394445]
[1724847324057,0.000819,60187.0,60186.0,2.09950357]
[1724847325132,0.000819,60187.0,60186.0,2.22393472]
[1724847325956,0.0049728,60187.0,60186.0,2.22391818]
[1724847327656,0.0049728,60187.0,60186.0,2.22365118]
[1724847328080,0.0049728,60187.0,60186.0,2.30392836]
[1724847330675,0.000819,60187.0,60186.0,2.30392836]
[1724847330889,0.143619,60187.0,60186.0,1.78427115]
[1724847331110,0.143619,60187.0,60186.0,1.75939015]
[1724847332046,0.143619,60187.0,60186.0,2.09169315]
[1724847332477,0.143619,60187.0,60186.0,1.75939015]
[1724847332730,0.062219,60187.0,60186.0,2.09169315]
[1724847332961,0.062219,60187.0,60186.0,1.75939015]
[1724847334397,0.062219,60187.0,60186.0,1.31606285]
[1724847334640,0.062219,60187.0,60186.0,1.36584296]
[1724847336518,0.08826748,60187.0,60186.0,1.36584296]
[1724847337755,0.08826748,60187.0,60186.0,1.36557596]
[1724847339230,0.08826748,60187.0,60186.0,1.36647686]
[1724847339709,0.08826748,60187.0,60186.0,1.84225861]
[1724847339710,0.02686748,60187.0,60186.0,1.84225861]
[1724847340130,0.000819,60187.0,60186.0,1.84225861]
[1724847340561,0.000819,60187.0,60186.0,2.17456161]
[1724847343814,0.000819,60187.0,60186.0,2.09989541]
[1724847345341,0.000819,60187.0,60186.0,1.73119975]
[1724847345552,0.000819,60187.0,60186.0,2.09987569]
[1724847346370,0.02686702,60187.0,60186.0,2.09987569]
[1724847346786,0.02686702,60187.0,60186.0,2.01767569]
[1724847347224,0.03102083,60187.0,60186.0,2.01767569]
[1724847347864,0.03102083,60187.0,60186.0,2.11722057]
[1724847348500,0.02686702,60187.0,60186.0,2.11722057]
[1724847350185,0.000819,60187.0,60186.0,1.64899975]
[1724847350398,0.000819,60187.0,60186.0,2.11723402]
[1724847351488,0.000819,60187.0,60186.0,2.1172391]
[1724847352632,0.000819,60187.0,60186.0,2.01767611]
[1724847352856,0.000819,60187.0,60186.0,1.68537311]
[1724847354628,0.000819,60187.0,60186.0,1.80982684]
[1724847356439,0.02686699,60187.0,60186.0,1.68537311]
[1724847357082,0.02686699,60187.0,60186.0,1.69784465]
[1724847357697,0.02686699,60187.0,60186.0,1.68537311]
[1724847358323,0.02686699,60187.0,60186.0,1.69784443]
[1724847358739,0.02686699,60187.0,60186.0,1.68537311]
[1724847359030,0.10856699,60187.0,60186.0,1.80998753]
[1724847359358,0.17476699,60187.0,60186.0,1.80998753]
[1724847359596,0.17476699,60187.0,60186.0,1.68537311]
[1724847359981,0.148719,60187.0,60186.0,1.68539127]
[1724847360766,0.148719,60187.0,60186.0,1.45279002]
[1724847360990,0.148719,60187.0,60186.0,0.48283191]
[1724847360991,0.16482528,60187.0,60186.0,0.48283191]
[1724847361204,0.73859571,60187.0,60186.0,0.03935496]
[1724847361399,1.07089271,60187.0,60186.0,0.03633815]
[1724847361623,1.07089271,60187.0,60186.0,0.0289009]
[1724847361624,1.22041505,60187.0,60186.0,0.0289009]
[1724847361858,1.22041505,60187.0,60181.0,0.0009009]
[1724847361859,0.835812,60182.0,60181.0,0.0009009]
[1724847362068,1.49825905,60182.0,60181.0,0.0009009]
[1724847362285,1.39631418,60182.0,60181.0,0.0009009]
[1724847362496,1.39831418,60182.0,60181.0,0.0009009]
[1724847363559,1.06398918,60182.0,60181.0,0.0009009]
[1724847363774,1.39631418,60182.0,60181.0,0.0009009]
[1724847364199,1.67380895,60182.0,60181.0,0.0009009]
[1724847364613,1.69986321,60182.0,60181.0,0.0009009]
[1724847364793,1.70586321,60182.0,60181.0,0.0019009]
[1724847365250,1.70686321,60182.0,60181.0,0.0019009]
[1724847365472,1.70086321,60182.0,60181.0,0.0009009]
[1724847365686,1.71286321,60182.0,60181.0,0.0019009]
[1724847365930,1.71386321,60182.0,60181.0,0.0029009]
[1724847366160,1.71386321,60182.0,60181.0,0.0009009]
[1724847366161,2.05518821,60182.0,60181.0,0.0009009]
[1724847366385,2.16518821,60182.0,60181.0,0.0009009]
[1724847366602,2.17118821,60182.0,60181.0,0.0019009]
[1724847367511,2.17518821,60182.0,60181.0,0.0019009]
[1724847367944,2.16518821,60182.0,60181.0,0.0009009]
[1724847368166,2.18718821,60182.0,60181.0,0.0019009]
[1724847368387,2.18718821,60182.0,60181.0,0.0009009]
[1724847368388,2.17818821,60182.0,60181.0,0.0009009]
[1724847368622,2.16518821,60182.0,60181.0,0.0009009]
[1724847368871,2.17518821,60182.0,60181.0,0.0019009]
[1724847369090,2.18918821,60182.0,60181.0,0.0019009]
[1724847370049,2.52151321,60182.0,60181.0,0.0019009]
[1724847370297,2.49545895,60182.0,60181.0,0.0019009]
[1724847370974,2.16313395,60182.0,60181.0,0.0019009]
[1724847371680,2.49545895,60182.0,60181.0,0.0019009]
[1724847371920,2.49545895,60182.0,60178.0,0.0009009]
[1724847371921,1.661034,60179.0,60178.0,0.0009009]
[1724847372151,0.1485,60158.0,60155.0,0.166237]
[1724847372366,0.00415638,60157.0,60155.0,0.166237]
[1724847372579,0.00415638,60157.0,60156.0,0.00802457]
[1724847373016,0.00415638,60157.0,60155.0,0.166237]
[1724847373244,0.00415638,60157.0,60154.0,0.0009009]
[1724847373453,0.00415638,60157.0,60156.0,0.00802457]
[1724847373663,0.00415638,60157.0,60155.0,0.166235]
[1724847373876,0.00415638,60157.0,60156.0,0.00802457]
[1724847374321,0.00415638,60157.0,60154.0,0.0009009]
[1724847374322,0.166237,60155.0,60154.0,0.0009009]
[1724847374554,0.17039376,60155.0,60154.0,0.0009009]
[1724847374802,0.00415676,60155.0,60154.0,0.0009009]
[1724847375027,0.03021979,60155.0,60154.0,0.00892547]
[1724847375246,0.75665954,60155.0,60154.0,0.0009009]
[1724847375470,1.09413354,60155.0,60154.0,0.00912841]
[1724847375683,1.09413354,60155.0,60154.0,0.0009009]
[1724847375899,1.43060754,60155.0,60154.0,0.0009009]
[1724847377224,1.42860754,60155.0,60154.0,0.0009009]
[1724847377653,1.43060754,60155.0,60154.0,0.0009009]
[1724847379167,1.40454451,60155.0,60154.0,0.0009009]
[1724847379382,1.07207051,60155.0,60154.0,0.0009009]
[1724847380327,1.40454451,60155.0,60154.0,0.0009009]
[1724847380545,1.07207051,60155.0,60154.0,0.0009009]
[1724847380973,1.40454451,60155.0,60154.0,0.0009009]
[1724847381198,1.07207051,60155.0,60154.0,0.0009009]
[1724847381409,1.40454451,60155.0,60154.0,0.0009009]
[1724847382592,1.43061152,60155.0,60154.0,0.0009009]
[1724847382598,1.95233152,60155.0,60154.0,0.0009009]
[1724847383458,0.84368077,60155.0,60154.0,0.0009009]
[1724847383671,1.19715477,60155.0,60154.0,0.0009009]
[1724847383886,1.19515477,60155.0,60154.0,0.0009009]
[1724847384305,1.51362877,60155.0,60154.0,0.0009009]
[1724847384510,1.20215477,60155.0,60154.0,0.0009009]
[1724847384727,1.34366169,60155.0,60154.0,0.0009009]
[1724847384940,0.67744377,60155.0,60154.0,0.0009009]
[1724847385198,0.68044377,60155.0,60154.0,0.0009009]
[1724847385401,0.68044377,60155.0,60154.0,0.00947799]
[1724847385602,0.84368077,60155.0,60154.0,0.0009009]
[1724847385844,0.88818274,60155.0,60154.0,0.0009009]
[1724847386097,0.88818274,60155.0,60154.0,0.00947799]
[1724847386310,0.88518274,60155.0,60154.0,0.00947799]
[1724847386530,0.89318274,60155.0,60154.0,0.00947799]
[1724847386741,0.89318274,60155.0,60154.0,0.0009009]
[1724847386950,0.88518274,60155.0,60154.0,0.00947799]
[1724847387152,0.88518274,60155.0,60154.0,0.0009009]
[1724847387358,0.89018274,60155.0,60154.0,0.00947799]
[1724847387577,0.89018274,60155.0,60154.0,0.0009009]
[1724847387785,0.89018274,60155.0,60154.0,0.00947799]
[1724847387984,0.89018274,60155.0,60154.0,0.0009009]
[1724847388187,0.68444377,60155.0,60154.0,0.0096278]
[1724847388393,0.68444377,60155.0,60154.0,0.0009009]
[1724847388606,0.85068077,60155.0,60154.0,0.0096278]
[1724847388862,1.18315477,60155.0,60154.0,0.0096278]
[1724847389068,1.18315477,60155.0,60154.0,0.0009009]
[1724847389069,1.18515477,60155.0,60154.0,0.0009009]
[1724847389698,1.26974989,60155.0,60154.0,0.0009009]
[1724847391768,1.26774989,60155.0,60154.0,0.0009009]
[1724847392196,0.68444377,60155.0,60154.0,0.0009009]
[1724847392422,0.85068077,60155.0,60154.0,0.0009009]
[1724847393104,1.18315477,60155.0,60154.0,0.0009009]
[1724847394632,1.15708776,60155.0,60154.0,0.0009009]
[1724847395730,1.152931,60155.0,60154.0,0.0009009]
[1724847398092,1.17899703,60155.0,60154.0,0.0009009]
[1724847398500,0.68028603,60155.0,60154.0,0.0009009]
[1724847398733,1.17899703,60155.0,60154.0,0.0096278]
[1724847398955,0.84652303,60155.0,60154.0,0.0009009]
[1724847399161,1.17899703,60155.0,60154.0,0.0009009]
[1724847399368,1.17199703,60155.0,60154.0,0.0009009]
[1724847399573,1.68002267,60155.0,60154.0,0.0009009]
[1724847399802,2.01849667,60155.0,60154.0,0.0009009]
[1724847400018,2.00243064,60155.0,60154.0,0.0009009]
[1724847400240,1.99643064,60155.0,60154.0,0.0009009]
[1724847400460,2.00143064,60155.0,60154.0,0.0009009]
[1724847400867,2.02443064,60155.0,60154.0,0.0009009]
[1724847401074,2.02743064,60155.0,60154.0,0.0009009]
[1724847401294,2.02443064,60155.0,60154.0,0.0009009]
[1724847401746,2.12643064,60155.0,60154.0,0.0009009]
[1724847401949,2.12443064,60155.0,60154.0,0.0009009]
[1724847402388,2.13143064,60155.0,60154.0,0.0009009]
[1724847402609,2.12643064,60155.0,60154.0,0.0009009]
[1724847402843,2.13443064,60155.0,60154.0,0.0009009]
[1724847403264,2.16049903,60155.0,60154.0,0.0009009]
[1724847403473,2.15249903,60155.0,60154.0,0.0009009]
[1724847403678,2.49597303,60155.0,60154.0,0.0009009]
[1724847404334,0.498852,60138.0,60135.0,0.50589433]
[1724847404575,0.166289,60137.0,60135.0,0.50589433]
[1724847404788,0.166289,60137.0,60136.0,0.00889207]
[1724847406092,0.167289,60137.0,60136.0,0.00889207]
[1724847406305,0.52749143,60137.0,60136.0,0.00889207]
[1724847406723,0.19491843,60137.0,60136.0,0.00889207]
[1724847407800,0.19591843,60137.0,60136.0,0.00889207]
[1724847408005,0.02862943,60137.0,60136.0,0.00889207]
[1724847408425,0.02962943,60137.0,60136.0,0.00889207]
[1724847408642,0.02962943,60137.0,60136.0,0.17518107]
[1724847408862,0.02707033,60137.0,60136.0,0.50776007]
[1724847411469,0.02707033,60137.0,60136.0,0.50866207]
[1724847412291,0.04666087,60137.0,60136.0,0.50866207]
[1724847414304,0.04666087,60137.0,60136.0,0.84124107]
[1724847414533,0.02707033,60137.0,60136.0,0.84124107]
[1724847418669,0.02707033,60137.0,60136.0,0.50866207]
[1724847418877,0.02707033,60137.0,60136.0,0.17608307]
[1724847419099,0.02962943,60137.0,60136.0,0.17608307]
[1724847419315,0.08247557,60137.0,60136.0,0.17608307]
[1724847419772,0.02962943,60137.0,60136.0,0.17608307]
[1724847419977,0.02962943,60137.0,60136.0,0.50866207]
[1724847420189,0.02962943,60137.0,60136.0,0.17608307]
[1724847421519,0.02962943,60137.0,60136.0,0.00979407]
[1724847422627,0.0035591,60137.0,60136.0,0.00979407]
[1724847423459,0.0035591,60137.0,60136.0,0.17608307]
[1724847423667,0.0035591,60137.0,60136.0,0.00979407]
[1724847423845,0.1698451,60137.0,60136.0,0.00979407]
[1724847424081,0.0035591,60137.0,60136.0,0.00979407]
[1724847424749,0.1698451,60137.0,60136.0,0.00979407]
[1724847424952,0.0035591,60137.0,60136.0,0.00979407]
[1724847426014,0.0296296,60137.0,60136.0,0.00979407]
[1724847427530,0.1959156,60137.0,60136.0,0.00979407]
[1724847428178,0.0296296,60137.0,60136.0,0.00979407]
[1724847429669,0.0296296,60137.0,60136.0,0.31718307]
[1724847430782,0.0270705,60137.0,60136.0,0.64976207]
[1724847431001,0.0270705,60137.0,60136.0,0.98234107]